[Event "FIDE World Cup 2013"]
[Site "TromsÃ¸"]
[Date "2013.08.13"]
[Round "1.6"]
[White "Tomashevsky, Evgeny"]
[Black "Ramirez, Alejandro"]
[Result "0-1"]
[ECO "A57"]
[WhiteElo "2709"]
[BlackElo "2583"]
[PlyCount "88"]
[EventDate "2013.??.??"]
[EventCountry "NOR"]
[TimeControl "600+10"]

1. d4 {[%emt 0:00:00]} Nf6 {[%emt 0:00:00]} 2. c4 {[%emt 0:00:00]} c5 {[%emt 0:
00:00]} 3. d5 {[%emt 0:00:00]} b5 {[%emt 0:00:00]} 4. cxb5 {[%emt 0:00:00]} a6
{[%emt 0:00:00]} 5. e3 {[%emt 0:00:00]} g6 {[%emt 0:00:13]} 6. Nc3 {[%emt 0:00:
00]} Bg7 {[%emt 0:00:02]} 7. e4 {[%emt 0:00:00]} O-O {[%emt 0:00:38]} 8. a4 {
[%emt 0:00:21]} e6 {[%emt 0:00:11]} 9. dxe6 {[%emt 0:00:34]} fxe6 {[%emt 0:00:
03]} 10. Qd6 {[%emt 0:00:36]} Bb7 {[%emt 0:00:26]} 11. f3 {[%emt 0:01:08]} Ne8
{[%emt 0:02:38]} 12. Qxc5 {[%emt 0:00:45]} d5 {[%emt 0:00:02]} 13. exd5 {[%emt
0:02:10]} exd5 {[%emt 0:00:32]} 14. Nh3 {[%emt 0:00:26]} Nd7 {[%emt 0:00:31]}
15. Qf2 {[%emt 0:01:58]} d4 {[%emt 0:00:18]} 16. Bc4+ {[%emt 0:01:15]} Kh8 {
[%emt 0:00:01]} 17. O-O {[%emt 0:00:27]} dxc3 {[%emt 0:02:08]} 18. bxc3 {[%emt
0:00:01]} Nd6 {[%emt 0:00:24]} 19. Bg5 {[%emt 0:00:33]} Qc7 {[%emt 0:00:20]}
20. Bd3 {[%emt 0:00:34]} Nc5 {[%emt 0:01:27]} 21. Rad1 {[%emt 0:00:03]} axb5 {
[%emt 0:00:35]} 22. axb5 {[%emt 0:00:15]} Nde4 {[%emt 0:00:16]} 23. Bxe4 {
[%emt 0:00:04]} Nxe4 {[%emt 0:00:02]} 24. Qh4 {[%emt 0:00:01]} Nxc3 {[%emt 0:
00:20]} 25. Rde1 {[%emt 0:00:05]} Ra4 {[%emt 0:00:24]} 26. Qf2 {[%emt 0:01:14]}
Ne4 {[%emt 0:00:12]} 27. Qh4 {[%emt 0:00:27]} Nc3 {[%emt 0:00:59]} 28. Qf2 {
[%emt 0:00:02]} Ra2 {[%emt 0:00:35]} 29. Qh4 {[%emt 0:00:12]} Qc5+ {[%emt 0:00:
16]} 30. Be3 {[%emt 0:00:17]} Qxb5 {[%emt 0:00:05]} 31. Ng5 {[%emt 0:00:02]} h5
{[%emt 0:00:31]} 32. Ne6 {[%emt 0:00:01]} Ne2+ {[%emt 0:00:28]} 33. Kh1 {[%emt
0:00:05]} Bf6 {[%emt 0:00:02]} 34. Qf2 {[%emt 0:00:24]} Re8 {[%emt 0:00:31]}
35. Rb1 {[%emt 0:00:30]} Qc6 {[%emt 0:00:17]} 36. Nc5 {[%emt 0:00:14]} Nc3 {
[%emt 0:00:06]} 37. Qg3 {[%emt 0:00:10]} Nxb1 {[%emt 0:00:05]} 38. Qxg6 {[%emt
0:00:02]} Rxe3 {[%emt 0:00:09]} 39. Qh6+ {[%emt 0:00:16]} Kg8 {[%emt 0:00:01]}
40. Qxe3 {[%emt 0:00:01]} Nd2 {[%emt 0:00:09]} 41. Rd1 {[%emt 0:00:20]} Bc8 {
[%emt 0:00:16]} 42. Qh6 {[%emt 0:00:21]} Bf5 {[%emt 0:00:24]} 43. h4 {[%emt 0:
00:07]} Rc2 {[%emt 0:00:13]} 44. Nb7 {[%emt 0:00:52]} Rc1 {[%emt 0:00:11]} 0-1

[Event "FIDE World Cup 2013"]
[Site "TromsÃ¸"]
[Date "2013.08.13"]
[Round "1.7"]
[White "Alekseev, Evgeny"]
[Black "Adhiban, B."]
[Result "0-1"]
[ECO "C72"]
[WhiteElo "2714"]
[BlackElo "2567"]
[PlyCount "121"]
[EventDate "2013.??.??"]
[EventCountry "NOR"]
[TimeControl "300+3"]

1. e4 {[%emt 0:00:00]} e5 {[%emt 0:00:00]} 2. Nf3 {[%emt 0:00:00]} Nc6 {[%emt
0:00:00]} 3. Bb5 {[%emt 0:00:00]} a6 {[%emt 0:00:00]} 4. Ba4 {[%emt 0:00:01]}
d6 {[%emt 0:00:01]} 5. O-O {[%emt 0:00:03]} Bd7 {[%emt 0:00:02]} 6. c3 {[%emt
0:00:02]} Nge7 {[%emt 0:00:03]} 7. d4 {[%emt 0:00:11]} Ng6 {[%emt 0:00:01]} 8.
Re1 {[%emt 0:00:25]} Be7 {[%emt 0:00:04]} 9. Nbd2 {[%emt 0:00:16]} h6 {[%emt 0:
02:04]} 10. Nf1 {[%emt 0:00:12]} O-O {[%emt 0:00:16]} 11. Ng3 {[%emt 0:00:33]}
Nh4 {[%emt 0:00:16]} 12. Nxh4 {[%emt 0:00:28]} Bxh4 {[%emt 0:00:01]} 13. f4 {
[%emt 0:00:24]} exd4 {[%emt 0:00:38]} 14. cxd4 {[%emt 0:00:03]} d5 {[%emt 0:00:
43]} 15. e5 {[%emt 0:00:17]} Ne7 {[%emt 0:00:16]} 16. Bc2 {[%emt 0:00:11]} Bxg3
{[%emt 0:00:04]} 17. hxg3 {[%emt 0:00:08]} Qc8 {[%emt 0:00:01]} 18. b3 {[%emt
0:00:19]} Bg4 {[%emt 0:00:02]} 19. Qd2 {[%emt 0:00:30]} Nf5 {[%emt 0:00:06]}
20. Ba3 {[%emt 0:00:08]} Re8 {[%emt 0:00:01]} 21. Kf2 {[%emt 0:00:05]} a5 {
[%emt 0:00:17]} 22. Rac1 {[%emt 0:00:11]} Qd7 {[%emt 0:00:04]} 23. Rh1 {[%emt
0:00:08]} h5 {[%emt 0:00:01]} 24. Bd1 {[%emt 0:00:30]} Nh6 {[%emt 0:00:06]} 25.
Rxh5 {[%emt 0:00:34]} Bxh5 {[%emt 0:00:04]} 26. Bxh5 {[%emt 0:00:01]} a4 {
[%emt 0:00:07]} 27. b4 {[%emt 0:00:02]} Ng4+ {[%emt 0:00:04]} 28. Bxg4 {[%emt
0:00:28]} Qxg4 {[%emt 0:00:01]} 29. Qd3 {[%emt 0:00:12]} g6 {[%emt 0:00:26]}
30. Qf3 {[%emt 0:00:03]} Qxf3+ {[%emt 0:00:13]} 31. Kxf3 {[%emt 0:00:00]} Re6 {
[%emt 0:00:01]} 32. g4 {[%emt 0:00:02]} Rc6 {[%emt 0:00:02]} 33. Rc5 {[%emt 0:
00:07]} Rxc5 {[%emt 0:00:02]} 34. dxc5 {[%emt 0:00:02]} Rd8 {[%emt 0:00:10]}
35. Ke3 {[%emt 0:00:04]} Kg7 {[%emt 0:00:05]} 36. Bb2 {[%emt 0:00:01]} Kh7 {
[%emt 0:00:13]} 37. f5 {[%emt 0:00:01]} gxf5 {[%emt 0:00:01]} 38. gxf5 {[%emt
0:00:00]} Rg8 {[%emt 0:00:01]} 39. Kf3 {[%emt 0:00:01]} Rg5 {[%emt 0:00:02]}
40. g4 {[%emt 0:00:01]} Rg8 {[%emt 0:00:02]} 41. Kf4 {[%emt 0:00:02]} c6 {
[%emt 0:00:04]} 42. g5 {[%emt 0:00:03]} Re8 {[%emt 0:00:03]} 43. a3 {[%emt 0:
00:05]} Re7 {[%emt 0:00:01]} 44. Bd4 {[%emt 0:00:02]} Re8 {[%emt 0:00:01]} 45.
Kg4 {[%emt 0:00:02]} Re7 {[%emt 0:00:02]} 46. Kh5 {[%emt 0:00:03]} Re8 {[%emt
0:00:02]} 47. e6 {[%emt 0:00:06]} fxe6 {[%emt 0:00:01]} 48. g6+ {[%emt 0:00:01]
} Kg8 {[%emt 0:00:01]} 49. f6 {[%emt 0:00:01]} Kf8 {[%emt 0:00:11]} 50. f7 {
[%emt 0:00:03]} Re7 {[%emt 0:00:00]} 51. Be5 {[%emt 0:00:04]} d4 {[%emt 0:00:
04]} 52. Bxd4 {[%emt 0:00:07]} e5 {[%emt 0:00:01]} 53. Be3 {[%emt 0:00:02]}
Rxf7 {[%emt 0:00:13]} 54. Bh6+ {[%emt 0:00:09]} Kg8 {[%emt 0:00:04]} 55. gxf7+
{[%emt 0:00:01]} Kxf7 {[%emt 0:00:00]} 56. Kg4 {[%emt 0:00:04]} Ke6 {[%emt 0:
00:01]} 57. Kf3 {[%emt 0:00:04]} Kd5 {[%emt 0:00:01]} 58. Bg7 {[%emt 0:00:02]}
Kc4 {[%emt 0:00:01]} 59. Ke4 {[%emt 0:00:08]} Kb3 {[%emt 0:00:01]} 60. Kd3 {
[%emt 0:00:07]} Kxa3 {[%emt 0:00:03]} 61. Kc3 0-1

[Event "FIDE World Cup 2013"]
[Site "TromsÃ¸"]
[Date "2013.08.13"]
[Round "1.7"]
[White "Granda Zuniga, Julio E"]
[Black "Melkumyan, Hrant"]
[Result "0-1"]
[ECO "A45"]
[WhiteElo "2679"]
[BlackElo "2632"]
[PlyCount "89"]
[EventDate "2013.??.??"]
[EventCountry "NOR"]
[TimeControl "300+3"]

1. d4 {[%emt 0:00:00]} Nf6 {[%emt 0:00:00]} 2. Bf4 {[%emt 0:00:00]} g6 {[%emt
0:00:00]} 3. Nd2 {[%emt 0:00:01]} Bg7 {[%emt 0:00:00]} 4. e4 {[%emt 0:00:02]}
O-O {[%emt 0:00:00]} 5. e5 {[%emt 0:00:06]} Nd5 {[%emt 0:00:01]} 6. Bg3 {[%emt
0:00:01]} d6 {[%emt 0:00:01]} 7. Ngf3 {[%emt 0:00:03]} Nc6 {[%emt 0:00:01]} 8.
Be2 {[%emt 0:00:30]} dxe5 {[%emt 0:00:07]} 9. dxe5 {[%emt 0:00:02]} Bg4 {[%emt
0:00:13]} 10. h3 {[%emt 0:00:12]} Bxf3 {[%emt 0:00:01]} 11. Nxf3 {[%emt 0:00:
02]} e6 {[%emt 0:00:05]} 12. c3 {[%emt 0:00:17]} Nde7 {[%emt 0:00:05]} 13. Qa4
{[%emt 0:00:09]} Nf5 {[%emt 0:00:27]} 14. Rd1 {[%emt 0:01:08]} Qe7 {[%emt 0:00:
23]} 15. Bh2 {[%emt 0:00:02]} Qc5 {[%emt 0:00:12]} 16. Qb5 {[%emt 0:00:32]} Qb6
{[%emt 0:00:17]} 17. O-O {[%emt 0:00:51]} Rfd8 {[%emt 0:00:01]} 18. a4 {[%emt
0:00:16]} Nfe7 {[%emt 0:00:34]} 19. Rfe1 {[%emt 0:00:22]} Nd5 {[%emt 0:00:04]}
20. Bf1 {[%emt 0:00:22]} a6 {[%emt 0:00:02]} 21. Qxb6 {[%emt 0:00:03]} Nxb6 {
[%emt 0:00:01]} 22. b3 {[%emt 0:00:06]} Nd5 {[%emt 0:00:02]} 23. Rd3 {[%emt 0:
00:16]} b5 {[%emt 0:01:06]} 24. axb5 {[%emt 0:00:09]} axb5 {[%emt 0:00:00]} 25.
Red1 {[%emt 0:00:05]} Nxc3 {[%emt 0:00:21]} 26. Rxd8+ {[%emt 0:00:28]} Nxd8 {
[%emt 0:00:01]} 27. Rc1 {[%emt 0:00:06]} b4 {[%emt 0:00:01]} 28. Bf4 {[%emt 0:
00:02]} Nc6 {[%emt 0:00:05]} 29. Bd2 {[%emt 0:00:05]} Nxe5 {[%emt 0:00:07]} 30.
Nd4 {[%emt 0:00:02]} c5 {[%emt 0:00:10]} 31. Nb5 {[%emt 0:00:02]} Nxb5 {[%emt
0:00:32]} 32. Bxb5 {[%emt 0:00:01]} Bf8 {[%emt 0:00:21]} 33. Bf4 {[%emt 0:00:
05]} Ra5 {[%emt 0:00:08]} 34. Bf1 {[%emt 0:00:02]} Nc6 {[%emt 0:00:02]} 35. Be3
{[%emt 0:00:02]} Ra3 {[%emt 0:00:05]} 36. Bxc5 {[%emt 0:00:06]} Bxc5 {[%emt 0:
00:01]} 37. Rxc5 {[%emt 0:00:01]} Nd4 {[%emt 0:00:32]} 38. Rc4 {[%emt 0:00:01]}
Nxb3 {[%emt 0:00:02]} 39. Rxb4 {[%emt 0:00:02]} Nc5 {[%emt 0:00:02]} 40. Rc4 {
[%emt 0:00:03]} Nd7 {[%emt 0:00:01]} 41. h4 {[%emt 0:00:06]} Ra2 {[%emt 0:00:
04]} 42. Rc3 {[%emt 0:00:09]} Nf6 {[%emt 0:00:03]} 43. g3 {[%emt 0:00:04]} Kg7
{[%emt 0:00:01]} 44. Kg2 {[%emt 0:00:01]} Rxf2+ {[%emt 0:00:02]} 45. Kxf2 0-1

[Event "FIDE World Cup 2013"]
[Site "TromsÃ¸"]
[Date "2013.08.13"]
[Round "1.7"]
[White "Ramirez, Alejandro"]
[Black "Tomashevsky, Evgeny"]
[Result "1-0"]
[ECO "A06"]
[WhiteElo "2583"]
[BlackElo "2709"]
[PlyCount "47"]
[EventDate "2013.??.??"]
[EventCountry "NOR"]
[TimeControl "300+3"]

1. Nf3 {[%emt 0:00:00]} d5 {[%emt 0:00:00]} 2. d4 {[%emt 0:00:00]} c6 {[%emt 0:
00:00]} 3. c4 {[%emt 0:00:01]} e6 {[%emt 0:00:00]} 4. Qc2 {[%emt 0:00:01]} dxc4
{[%emt 0:00:01]} 5. Qxc4 {[%emt 0:00:01]} Nf6 {[%emt 0:00:01]} 6. Bg5 {[%emt 0:
00:02]} b5 {[%emt 0:00:01]} 7. Qc2 {[%emt 0:00:01]} Bb7 {[%emt 0:00:01]} 8.
Nbd2 {[%emt 0:00:02]} a6 {[%emt 0:00:03]} 9. e3 {[%emt 0:00:19]} Nbd7 {[%emt 0:
00:05]} 10. a4 {[%emt 0:00:18]} Rc8 {[%emt 0:00:07]} 11. Be2 {[%emt 0:00:10]}
Bb4 {[%emt 0:01:01]} 12. O-O {[%emt 0:00:13]} Qb6 {[%emt 0:00:07]} 13. Nb3 {
[%emt 0:00:28]} c5 {[%emt 0:00:20]} 14. Bxf6 {[%emt 0:00:18]} gxf6 {[%emt 0:00:
13]} 15. dxc5 {[%emt 0:00:02]} Nxc5 {[%emt 0:00:03]} 16. axb5 {[%emt 0:00:06]}
axb5 {[%emt 0:00:05]} 17. Nbd4 {[%emt 0:00:16]} Ke7 {[%emt 0:00:39]} 18. Nxb5 {
[%emt 0:00:33]} Bxf3 {[%emt 0:00:58]} 19. gxf3 {[%emt 0:00:01]} Rhd8 {[%emt 0:
01:22]} 20. Ra7+ {[%emt 0:00:45]} Nd7 {[%emt 0:00:01]} 21. Qe4 {[%emt 0:00:07]}
Bc5 {[%emt 0:00:20]} 22. b4 {[%emt 0:00:30]} Bd6 {[%emt 0:00:13]} 23. Rb7 {
[%emt 0:00:20]} Qc6 {[%emt 0:00:07]} 24. Na7 {[%emt 0:00:13]} 1-0

[Event "FIDE World Cup 2013"]
[Site "TromsÃ¸"]
[Date "2013.08.13"]
[Round "1.7"]
[White "Swiercz, Dariusz"]
[Black "Zvjaginsev, Vadim"]
[Result "1/2-1/2"]
[ECO "B36"]
[WhiteElo "2650"]
[BlackElo "2659"]
[PlyCount "72"]
[EventDate "2013.??.??"]
[EventCountry "NOR"]
[TimeControl "300+3"]

1. e4 {[%emt 0:00:00]} c5 {[%emt 0:00:00]} 2. Nf3 {[%emt 0:00:00]} Nc6 {[%emt
0:00:00]} 3. d4 {[%emt 0:00:00]} cxd4 {[%emt 0:00:00]} 4. Nxd4 {[%emt 0:00:02]}
g6 {[%emt 0:00:01]} 5. c4 {[%emt 0:00:01]} Nf6 {[%emt 0:00:01]} 6. Nc3 {[%emt
0:00:01]} d6 {[%emt 0:00:01]} 7. Be2 {[%emt 0:00:01]} Nxd4 {[%emt 0:00:01]} 8.
Qxd4 {[%emt 0:00:01]} Bg7 {[%emt 0:00:02]} 9. Be3 {[%emt 0:00:01]} O-O {[%emt
0:00:01]} 10. Qd2 {[%emt 0:00:02]} Qa5 {[%emt 0:00:03]} 11. f3 {[%emt 0:00:05]}
Be6 {[%emt 0:00:02]} 12. Rc1 {[%emt 0:00:01]} Rfc8 {[%emt 0:00:13]} 13. b3 {
[%emt 0:00:01]} Rab8 {[%emt 0:00:01]} 14. Nb5 {[%emt 0:00:01]} Qxd2+ {[%emt 0:
00:04]} 15. Kxd2 {[%emt 0:00:02]} a6 {[%emt 0:00:01]} 16. Nd4 {[%emt 0:00:01]}
Bd7 {[%emt 0:00:07]} 17. Rhd1 {[%emt 0:00:01]} Be8 {[%emt 0:00:04]} 18. Nc2 {
[%emt 0:00:17]} Nd7 {[%emt 0:00:13]} 19. Nb4 {[%emt 0:00:04]} Kf8 {[%emt 0:00:
19]} 20. Ke1 {[%emt 0:00:28]} Nc5 {[%emt 0:00:16]} 21. Nd5 {[%emt 0:00:02]} b6
{[%emt 0:00:01]} 22. b4 {[%emt 0:00:43]} Na4 {[%emt 0:00:30]} 23. Bg5 {[%emt 0:
00:08]} f6 {[%emt 0:00:05]} 24. Be3 {[%emt 0:01:21]} Bf7 {[%emt 0:01:18]} 25.
Rd2 {[%emt 0:00:57]} Bxd5 {[%emt 0:01:12]} 26. exd5 {[%emt 0:00:10]} f5 {[%emt
0:00:03]} 27. Bd1 {[%emt 0:01:16]} Nc3 {[%emt 0:00:28]} 28. Be2 {[%emt 0:00:30]
} a5 {[%emt 0:00:24]} 29. bxa5 {[%emt 0:00:05]} bxa5 {[%emt 0:00:08]} 30. Rdc2
{[%emt 0:00:03]} Na4 {[%emt 0:00:30]} 31. c5 {[%emt 0:00:01]} Nxc5 {[%emt 0:00:
16]} 32. Bxc5 {[%emt 0:00:02]} dxc5 {[%emt 0:00:03]} 33. Rxc5 {[%emt 0:00:01]}
Rxc5 {[%emt 0:00:04]} 34. Rxc5 {[%emt 0:00:01]} Rb1+ {[%emt 0:00:03]} 35. Kd2 {
[%emt 0:00:06]} Rb2+ {[%emt 0:00:03]} 36. Rc2 {[%emt 0:00:03]} Rxc2+ {[%emt 0:
00:04]} 1/2-1/2

[Event "FIDE World Cup 2013"]
[Site "TromsÃ¸"]
[Date "2013.08.13"]
[Round "1.8"]
[White "Adhiban, B."]
[Black "Alekseev, Evgeny"]
[Result "1-0"]
[ECO "B45"]
[WhiteElo "2567"]
[BlackElo "2714"]
[PlyCount "73"]
[EventDate "2013.??.??"]
[EventCountry "NOR"]
[TimeControl "300+3"]

1. e4 {[%emt 0:00:00]} c5 {[%emt 0:00:00]} 2. Nf3 {[%emt 0:00:01]} Nc6 {[%emt
0:00:01]} 3. Nc3 {[%emt 0:00:05]} e6 {[%emt 0:00:12]} 4. d4 {[%emt 0:00:07]}
cxd4 {[%emt 0:00:02]} 5. Nxd4 {[%emt 0:00:01]} d6 {[%emt 0:00:06]} 6. Be3 {
[%emt 0:00:20]} a6 {[%emt 0:00:05]} 7. Bc4 {[%emt 0:00:11]} Nf6 {[%emt 0:00:14]
} 8. Qe2 {[%emt 0:00:03]} Qc7 {[%emt 0:00:08]} 9. O-O-O {[%emt 0:00:05]} Na5 {
[%emt 0:00:07]} 10. Bb3 {[%emt 0:00:02]} b5 {[%emt 0:00:23]} 11. Kb1 {[%emt 0:
00:02]} Nxb3 {[%emt 0:00:47]} 12. axb3 {[%emt 0:00:02]} e5 {[%emt 0:00:07]} 13.
Nf5 {[%emt 0:01:45]} b4 {[%emt 0:00:09]} 14. Na4 {[%emt 0:00:16]} Nxe4 {[%emt
0:01:32]} 15. Nb6 {[%emt 0:00:01]} Rb8 {[%emt 0:00:05]} 16. Nxc8 {[%emt 0:00:
35]} Rxc8 {[%emt 0:00:05]} 17. Bh6 {[%emt 0:00:20]} g6 {[%emt 0:00:15]} 18.
Bxf8 {[%emt 0:00:41]} Kxf8 {[%emt 0:00:24]} 19. Qxe4 {[%emt 0:00:14]} gxf5 {
[%emt 0:00:01]} 20. Qxf5 {[%emt 0:00:01]} Rg8 {[%emt 0:00:16]} 21. Rxd6 {[%emt
0:00:04]} Qxd6 {[%emt 0:00:08]} 22. Qxc8+ {[%emt 0:00:02]} Kg7 {[%emt 0:00:01]}
23. Qc4 {[%emt 0:00:15]} f6 {[%emt 0:00:09]} 24. Kc1 {[%emt 0:00:15]} Rd8 {
[%emt 0:00:03]} 25. Qg4+ {[%emt 0:00:02]} Kf8 {[%emt 0:00:05]} 26. Rd1 {[%emt
0:00:01]} Qb6 {[%emt 0:00:15]} 27. Rxd8+ {[%emt 0:00:02]} Qxd8 {[%emt 0:00:01]}
28. Qxb4+ {[%emt 0:00:01]} Kg7 {[%emt 0:00:03]} 29. Qb7+ {[%emt 0:00:01]} Kg6 {
[%emt 0:00:03]} 30. Qxa6 {[%emt 0:00:02]} e4 {[%emt 0:00:02]} 31. Qe2 {[%emt 0:
00:23]} f5 {[%emt 0:00:03]} 32. g3 {[%emt 0:00:10]} Qa5 {[%emt 0:00:04]} 33. c3
{[%emt 0:00:10]} Kf6 {[%emt 0:00:04]} 34. Kc2 {[%emt 0:00:02]} Ke5 {[%emt 0:00:
02]} 35. Qd2 {[%emt 0:00:01]} Qa1 {[%emt 0:00:09]} 36. c4 {[%emt 0:00:06]} Ke6
{[%emt 0:00:04]} 37. c5 {[%emt 0:00:03]} 1-0

[Event "FIDE World Cup 2013"]
[Site "TromsÃ¸"]
[Date "2013.08.13"]
[Round "1.8"]
[White "Melkumyan, Hrant"]
[Black "Granda Zuniga, Julio E"]
[Result "0-1"]
[ECO "A61"]
[WhiteElo "2632"]
[BlackElo "2679"]
[PlyCount "120"]
[EventDate "2013.??.??"]
[EventCountry "NOR"]
[TimeControl "300+3"]

1. d4 {[%emt 0:00:00]} Nf6 {[%emt 0:00:00]} 2. c4 {[%emt 0:00:00]} e6 {[%emt 0:
00:00]} 3. Nf3 {[%emt 0:00:01]} c5 {[%emt 0:00:01]} 4. d5 {[%emt 0:00:04]} exd5
{[%emt 0:00:01]} 5. cxd5 {[%emt 0:00:01]} d6 {[%emt 0:00:01]} 6. Nc3 {[%emt 0:
00:01]} g6 {[%emt 0:00:02]} 7. Bf4 {[%emt 0:00:01]} Nh5 {[%emt 0:00:20]} 8. Bg5
{[%emt 0:00:04]} f6 {[%emt 0:00:06]} 9. Bd2 {[%emt 0:00:04]} Bg7 {[%emt 0:00:
10]} 10. Qa4+ {[%emt 0:00:32]} Bd7 {[%emt 0:00:03]} 11. Qe4+ {[%emt 0:00:10]}
Kf7 {[%emt 0:00:40]} 12. g4 {[%emt 0:00:08]} f5 {[%emt 0:00:02]} 13. gxf5 {
[%emt 0:00:14]} Bxf5 {[%emt 0:00:05]} 14. Qc4 {[%emt 0:00:24]} Re8 {[%emt 0:00:
08]} 15. Ng5+ {[%emt 0:00:17]} Kg8 {[%emt 0:00:01]} 16. Ne6 {[%emt 0:00:06]}
Qb6 {[%emt 0:01:13]} 17. Nxg7 {[%emt 0:00:04]} Nxg7 {[%emt 0:00:02]} 18. e4 {
[%emt 0:00:25]} Nd7 {[%emt 0:00:43]} 19. Bg2 {[%emt 0:00:06]} Ne5 {[%emt 0:00:
03]} 20. Qe2 {[%emt 0:00:04]} Bg4 {[%emt 0:00:06]} 21. f3 {[%emt 0:00:05]} Nf5
{[%emt 0:00:16]} 22. O-O {[%emt 0:00:46]} Nd4 {[%emt 0:00:02]} 23. Qd1 {[%emt
0:00:14]} Bh5 {[%emt 0:00:07]} 24. Na4 {[%emt 0:00:44]} Qa6 {[%emt 0:00:07]}
25. Be3 {[%emt 0:00:03]} Ndxf3+ {[%emt 0:00:14]} 26. Kh1 {[%emt 0:00:28]} Nxh2
{[%emt 0:00:16]} 27. Qb3 {[%emt 0:00:02]} Nxf1 {[%emt 0:00:04]} 28. Bxf1 {
[%emt 0:00:01]} Be2 {[%emt 0:00:05]} 29. Bh3 {[%emt 0:00:04]} Qd3 {[%emt 0:00:
08]} 30. Qxd3 {[%emt 0:00:12]} Bxd3 {[%emt 0:00:11]} 31. Nc3 {[%emt 0:00:01]}
Nc4 {[%emt 0:00:02]} 32. Bf4 {[%emt 0:00:05]} Bxe4+ {[%emt 0:00:04]} 33. Kh2 {
[%emt 0:00:04]} Bf5 {[%emt 0:00:22]} 34. Bf1 {[%emt 0:00:04]} Ne5 {[%emt 0:00:
07]} 35. Nb5 {[%emt 0:00:04]} Rad8 {[%emt 0:00:04]} 36. Nxa7 {[%emt 0:00:05]}
g5 {[%emt 0:00:07]} 37. Bg3 {[%emt 0:00:02]} Ng4+ {[%emt 0:00:03]} 38. Kg1 {
[%emt 0:00:02]} Re3 {[%emt 0:00:01]} 39. Be1 {[%emt 0:00:03]} Rde8 {[%emt 0:00:
02]} 40. Bf2 {[%emt 0:00:12]} Nxf2 {[%emt 0:00:03]} 41. Kxf2 {[%emt 0:00:01]}
Bd7 {[%emt 0:00:11]} 42. Bb5 {[%emt 0:00:09]} R3e7 {[%emt 0:00:17]} 43. Bxd7 {
[%emt 0:00:05]} Rxd7 {[%emt 0:00:01]} 44. Nb5 {[%emt 0:00:01]} Re5 {[%emt 0:00:
08]} 45. Nc3 {[%emt 0:00:04]} Kg7 {[%emt 0:00:05]} 46. a4 {[%emt 0:00:03]} b6 {
[%emt 0:00:06]} 47. Ra3 {[%emt 0:00:02]} c4 {[%emt 0:00:02]} 48. Ra1 {[%emt 0:
00:06]} Rf7+ {[%emt 0:00:05]} 49. Kg2 {[%emt 0:00:01]} Re3 {[%emt 0:00:02]} 50.
Nb5 {[%emt 0:00:05]} Rf6 {[%emt 0:00:02]} 51. Rc1 {[%emt 0:00:05]} Re2+ {[%emt
0:00:03]} 52. Kg3 {[%emt 0:00:02]} Rd2 {[%emt 0:00:04]} 53. Rxc4 {[%emt 0:00:
03]} Rxd5 {[%emt 0:00:01]} 54. Nd4 {[%emt 0:00:09]} h5 {[%emt 0:00:04]} 55. Rb4
{[%emt 0:00:04]} Kg6 {[%emt 0:00:01]} 56. Nc6 {[%emt 0:00:09]} h4+ {[%emt 0:00:
05]} 57. Kg2 {[%emt 0:00:01]} Rd3 {[%emt 0:00:03]} 58. Rxb6 {[%emt 0:00:16]}
h3+ {[%emt 0:00:01]} 59. Kg1 {[%emt 0:00:00]} g4 {[%emt 0:00:02]} 60. Rb4 {
[%emt 0:00:05]} g3 {[%emt 0:00:03]} 0-1

[Event "FIDE World Cup 2013"]
[Site "TromsÃ¸"]
[Date "2013.08.13"]
[Round "1.8"]
[White "Tomashevsky, Evgeny"]
[Black "Ramirez, Alejandro"]
[Result "1-0"]
[ECO "D45"]
[WhiteElo "2709"]
[BlackElo "2583"]
[PlyCount "97"]
[EventDate "2013.??.??"]
[EventCountry "NOR"]
[TimeControl "300+3"]

1. d4 {[%emt 0:00:00]} d5 {[%emt 0:00:00]} 2. c4 {[%emt 0:00:00]} c6 {[%emt 0:
00:00]} 3. Nf3 {[%emt 0:00:00]} Nf6 {[%emt 0:00:00]} 4. Nc3 {[%emt 0:00:01]} a6
{[%emt 0:00:00]} 5. e3 {[%emt 0:00:01]} e6 {[%emt 0:00:07]} 6. c5 {[%emt 0:00:
03]} Nbd7 {[%emt 0:00:06]} 7. Qc2 {[%emt 0:00:01]} g6 {[%emt 0:00:11]} 8. Bd3 {
[%emt 0:00:04]} Bg7 {[%emt 0:00:05]} 9. O-O {[%emt 0:00:04]} O-O {[%emt 0:00:
09]} 10. e4 {[%emt 0:00:00]} dxe4 {[%emt 0:00:53]} 11. Bxe4 {[%emt 0:00:16]} e5
{[%emt 0:00:34]} 12. Be3 {[%emt 0:00:01]} exd4 {[%emt 0:00:52]} 13. Bxd4 {
[%emt 0:00:03]} Re8 {[%emt 0:00:34]} 14. Rad1 {[%emt 0:01:30]} Nf8 {[%emt 0:00:
01]} 15. Rfe1 {[%emt 0:00:36]} Bd7 {[%emt 0:00:13]} 16. b4 {[%emt 0:00:21]} Qc7
{[%emt 0:00:28]} 17. h3 {[%emt 0:00:10]} Qf4 {[%emt 0:00:10]} 18. Be3 {[%emt 0:
00:15]} Qc7 {[%emt 0:00:02]} 19. Bd3 {[%emt 0:00:13]} Rad8 {[%emt 0:00:08]} 20.
Qc1 {[%emt 0:00:20]} Ne6 {[%emt 0:00:09]} 21. Bc4 {[%emt 0:00:02]} Bc8 {[%emt
0:00:06]} 22. a3 {[%emt 0:00:05]} Rxd1 {[%emt 0:00:07]} 23. Rxd1 {[%emt 0:00:
00]} Rd8 {[%emt 0:00:01]} 24. Re1 {[%emt 0:00:01]} Nd5 {[%emt 0:00:28]} 25.
Nxd5 {[%emt 0:00:15]} cxd5 {[%emt 0:00:01]} 26. Bd3 {[%emt 0:00:01]} d4 {[%emt
0:00:14]} 27. Bd2 {[%emt 0:00:02]} Bd7 {[%emt 0:00:11]} 28. Bc4 {[%emt 0:00:14]
} Bc6 {[%emt 0:00:01]} 29. Bxe6 {[%emt 0:00:06]} Bxf3 {[%emt 0:00:06]} 30. gxf3
{[%emt 0:00:44]} fxe6 {[%emt 0:00:01]} 31. Rxe6 {[%emt 0:00:01]} Qf7 {[%emt 0:
00:06]} 32. Qc4 {[%emt 0:00:04]} Bf8 {[%emt 0:00:16]} 33. Qe2 {[%emt 0:00:07]}
Qf5 {[%emt 0:00:07]} 34. Kg2 {[%emt 0:00:04]} d3 {[%emt 0:00:04]} 35. Qe4 {
[%emt 0:00:06]} Qf7 {[%emt 0:00:06]} 36. h4 {[%emt 0:00:27]} Rd7 37. Re8 {
[%emt 0:00:01]} Re7 {[%emt 0:00:06]} 38. Rxe7 {[%emt 0:00:04]} Bxe7 39. Qxb7 {
[%emt 0:00:06]} Bxh4 {[%emt 0:00:05]} 40. Qxa6 {[%emt 0:00:02]} Bd8 {[%emt 0:
00:07]} 41. Qa8 {[%emt 0:00:04]} Qf8 42. Qd5+ {[%emt 0:00:02]} Kg7 {[%emt 0:00:
06]} 43. Qxd3 {[%emt 0:00:02]} Bf6 {[%emt 0:00:01]} 44. c6 {[%emt 0:00:05]} Qc8
{[%emt 0:00:02]} 45. b5 {[%emt 0:00:04]} h5 {[%emt 0:00:02]} 46. a4 {[%emt 0:
00:04]} h4 {[%emt 0:00:01]} 47. Qd7+ {[%emt 0:00:01]} Qxd7 {[%emt 0:00:02]} 48.
cxd7 {[%emt 0:00:01]} Kf7 {[%emt 0:00:00]} 49. Ba5 {[%emt 0:00:01]} 1-0